fUST/lending_fUST_20240902
["ID","MTS","AMOUNT","RATE_DAILY","PERIOD"]
[336859031,1725219040408,-500.0,0.00024657,2]
[336859032,1725219040417,-500.0,0.00024657,2]
[336859033,1725219040430,-500.0,0.00024657,2]
[336859034,1725219040439,-500.0,0.00024657,2]
[336859035,1725219040448,-500.0,0.00024657,2]
[336859036,1725219040457,-500.0,0.00024657,2]
[336859037,1725219040468,-500.0,0.00024657,2]
[336859038,1725219040477,-500.0,0.00024657,2]
[336859039,1725219040486,-500.0,0.00024657,2]
[336859040,1725219040495,-500.0,0.00024657,2]
[336859041,1725219040505,-500.0,0.00024657,2]
[336859042,1725219040514,-810.29,0.00024657,2]
[336859043,1725219040523,-522.73356696,0.00024657,2]
[336859044,1725219040532,-500.0,0.00024657,2]
[336859045,1725219040542,-500.0,0.00024657,2]
[336859046,1725219040551,-500.0,0.00024657,2]
[336859047,1725219040560,-500.0,0.00024657,2]
[336859048,1725219040569,-500.0,0.00024657,2]
[336859049,1725219040579,-1117.26,0.00024657,2]
[336859050,1725219040588,-500.0,0.00024657,2]
[336859051,1725219040597,-500.0,0.00024657,2]
[336859052,1725219040606,-500.0,0.00024657,2]
[336859053,1725219040615,-451.82667742,0.00024657,2]
[336859054,1725219040625,-500.0,0.00024657,2]
[336859055,1725219040636,-509.47967589,0.00024657,2]
[336859056,1725219040647,-500.0,0.00024657,2]
[336859057,1725219040658,-500.0,0.00024657,2]
[336859058,1725219040669,-500.0,0.00024657,2]
[336859059,1725219040678,-738.63,0.00024657,2]
[336859060,1725219040687,-500.0,0.00024657,2]
[336859061,1725219040696,-500.0,0.00024657,2]
[336859062,1725219040707,-500.0,0.00024657,2]
[336859063,1725219040716,-500.0,0.00024657,2]
[336859064,1725219040726,-734.83,0.00024657,2]
[336859065,1725219040735,-517.42,0.00024657,2]
[336859066,1725219040744,-545.76850301,0.00024657,2]
[336859067,1725219040753,-500.0,0.00024657,2]
[336859068,1725219040763,-500.0,0.00024657,2]
[336859069,1725219040774,-500.0,0.00024657,2]
[336859070,1725219040783,-500.0,0.00024657,2]
[336859071,1725219040794,-500.0,0.00024657,2]
[336859072,1725219040804,-500.0,0.00024657,2]
[336859073,1725219040814,-500.0,0.00024657,2]
[336859074,1725219040826,-500.0,0.00024657,2]
[336859076,1725219040837,-500.0,0.00024657,2]
[336859077,1725219040847,-500.0,0.00024657,2]
[336859080,1725219040859,-500.0,0.00024657,2]
[336859081,1725219040868,-969.63,0.00024657,2]
[336859083,1725219040878,-500.0,0.00024657,2]
[336859085,1725219040888,-500.0,0.00024657,2]
[336859087,1725219040899,-500.0,0.00024657,2]
[336859089,1725219040909,-500.0,0.00024657,2]
[336859090,1725219040918,-500.0,0.00024657,2]
[336859091,1725219040929,-268.96457699,0.00024657,2]
[336859093,1725219040939,-587.44,0.00024657,2]
[336859094,1725219040948,-527.94596193,0.00024657,2]
[336859096,1725219040960,-500.0,0.00024657,2]
[336859098,1725219040970,-500.0,0.00024657,2]
[336859100,1725219040979,-500.0,0.00024657,2]
[336859102,1725219040988,-500.0,0.00024657,2]
[336859104,1725219040998,-902.83,0.00024657,2]
[336859106,1725219041009,-500.0,0.00024657,2]
[336859108,1725219041021,-500.0,0.00024657,2]
[336859112,1725219041150,-250.45872117,0.00024657,2]
[336859113,1725219041192,-500.0,0.00024657,2]
[336859114,1725219041201,-461.98543976,0.00024657,2]
[336859115,1725219041210,-500.0,0.00024657,2]
[336859116,1725219041220,-500.0,0.00024657,2]
[336859117,1725219041229,-500.0,0.00024657,2]
[336859118,1725219041238,-500.0,0.00024657,2]
[336859119,1725219041247,-500.0,0.00024657,2]
[336859120,1725219041257,-500.0,0.00024657,2]
[336859121,1725219041266,-500.0,0.00024657,2]
[336859122,1725219041275,-500.0,0.00024657,2]
[336859123,1725219041284,-500.0,0.00024657,2]
[336859124,1725219041294,-500.0,0.00024657,2]
[336859125,1725219041303,-484.00240528,0.00024657,2]
[336859126,1725219041313,-3482.73,0.00024657,2]
[336859127,1725219041322,-500.0,0.00024657,2]
[336859128,1725219041331,-500.0,0.00024657,2]
[336859129,1725219041340,-585.03,0.00024657,2]
[336859130,1725219041349,-500.0,0.00024657,2]
[336859131,1725219041359,-500.0,0.00024657,2]
[336859132,1725219041369,-500.0,0.00024657,2]
[336859133,1725219041379,-206.59434215,0.00024657,2]
[336859134,1725219041389,-500.0,0.00024657,2]
[336859135,1725219041399,-500.0,0.00024657,2]
[336859136,1725219041410,-288.07190171,0.00024657,2]
[336859137,1725219041420,-500.0,0.00024657,2]
[336859138,1725219041432,-500.0,0.00024657,2]
[336859139,1725219041442,-796.93,0.00024657,2]
[336859140,1725219041454,-500.0,0.00024657,2]
[336859141,1725219041464,-500.0,0.00024657,2]
[336859142,1725219041474,-599.96,0.00024657,2]
[336859143,1725219041484,-500.0,0.00024657,2]
[336859144,1725219041494,-500.0,0.00024657,2]
[336859145,1725219041504,-500.0,0.00024657,2]
[336859146,1725219041514,-1176.96,0.00024657,2]
[336859147,1725219041523,-500.0,0.00024657,2]
[336859148,1725219041533,-500.0,0.00024657,2]
[336859149,1725219041545,-251.9472781,0.00024657,2]
[336859150,1725219041556,-500.0,0.00024657,2]
[336859151,1725219041566,-527.08,0.00024657,2]
[336859152,1725219041576,-500.0,0.00024657,2]
[336859153,1725219041586,-269.24649168,0.00024657,2]
[336859154,1725219041596,-500.0,0.00024657,2]
[336859155,1725219041606,-500.0,0.00024657,2]
[336859156,1725219041616,-500.0,0.00024657,2]
[336859157,1725219041626,-500.0,0.00024657,2]
[336859158,1725219041637,-420.25974606,0.00024657,2]
[336859159,1725219041647,-500.0,0.00024657,2]
[336859160,1725219041659,-639.01,0.00024657,2]
[336859161,1725219041670,-500.0,0.00024657,2]
[336859162,1725219041686,-500.0,0.00024657,2]
[336859163,1725219041695,-493.54742001,0.00024657,2]
[336859164,1725219041704,-500.0,0.00024657,2]
[336859165,1725219041713,-500.0,0.00024657,2]
[336859166,1725219041722,-500.0,0.00024657,2]
[336859167,1725219041732,-500.0,0.00024657,2]
[336859168,1725219041741,-500.0,0.00024657,2]
[336859169,1725219041750,-500.0,0.00024657,2]
[336859170,1725219041759,-500.0,0.00024657,2]
[336859171,1725219041770,-500.0,0.00024657,2]
[336859172,1725219041779,-500.0,0.00024657,2]
[336859173,1725219041788,-500.0,0.00024657,2]
[336859174,1725219041797,-500.0,0.00024657,2]
[336859175,1725219041807,-500.0,0.00024657,2]
[336859176,1725219041816,-500.0,0.00024657,2]
[336859177,1725219041827,-500.0,0.00024657,2]
[336859178,1725219041836,-500.0,0.00024657,2]
[336859179,1725219041845,-501.75064935,0.00024657,2]
[336859180,1725219041854,-500.0,0.00024657,2]
[336859181,1725219041863,-500.0,0.00024657,2]
[336859182,1725219041873,-536.9,0.00024657,2]
[336859183,1725219041882,-500.0,0.00024657,2]
[336859184,1725219041892,-500.0,0.00024657,2]
[336859185,1725219041901,-500.0,0.00024657,2]
[336859186,1725219041910,-500.0,0.00024657,2]
[336859187,1725219041920,-500.0,0.00024657,2]
[336859188,1725219041935,-500.0,0.00024657,2]
[336859189,1725219041945,-500.0,0.00024657,2]
[336859190,1725219041954,-500.0,0.00024657,2]
[336859191,1725219041963,-500.0,0.00024657,2]
[336859192,1725219041973,-590.8,0.00024657,2]
[336859193,1725219041982,-500.0,0.00024657,2]
[336859194,1725219041992,-500.0,0.00024657,2]
[336859195,1725219042002,-500.0,0.00024657,2]
[336859196,1725219042011,-500.0,0.00024657,2]
[336859197,1725219042021,-500.0,0.00024657,2]
[336859198,1725219042031,-500.0,0.00024657,2]
[336859199,1725219042041,-500.0,0.00024657,2]
[336859200,1725219042050,-500.0,0.00024657,2]
[336859201,1725219042060,-663.14,0.00024657,2]
[336859202,1725219042069,-500.0,0.00024657,2]
[336859203,1725219042079,-500.0,0.00024657,2]
[336859204,1725219042089,-624.00925403,0.00024657,2]
[336859205,1725219042100,-500.0,0.00024657,2]
[336859206,1725219042109,-500.0,0.00024657,2]
[336859207,1725219042119,-500.0,0.00024657,2]
[336859208,1725219042130,-500.0,0.00024657,2]
[336859209,1725219042139,-1112.56,0.00024657,2]
[336859210,1725219042149,-500.0,0.00024657,2]
[336859211,1725219042159,-417.32387967,0.00024657,2]
[336859212,1725219042167,-693.69,0.00024657,2]
[336859213,1725219042181,-500.0,0.00024657,2]
[336859214,1725219042190,-989.8,0.00024657,2]
[336859215,1725219042199,-500.0,0.00024657,2]
[336859216,1725219042209,-778.51,0.00024657,2]
[336859217,1725219042219,-500.0,0.00024657,2]
[336859218,1725219042228,-500.0,0.00024657,2]
[336859219,1725219042239,-500.0,0.00024657,2]
[336859220,1725219042248,-1625.48,0.00024657,2]
[336859221,1725219042258,-500.0,0.00024657,2]
[336859222,1725219042268,-500.0,0.00024657,2]
[336859223,1725219042278,-505.07028392,0.00024657,2]
[336859224,1725219042287,-1066.57,0.00024657,2]
[336859225,1725219042296,-500.0,0.00024657,2]
[336859226,1725219042306,-500.0,0.00024657,2]
[336859227,1725219042315,-500.0,0.00024657,2]
[336859228,1725219042325,-500.0,0.00024657,2]
[336859229,1725219042334,-500.0,0.00024657,2]
[336859230,1725219042343,-500.0,0.00024657,2]
[336859231,1725219042354,-500.0,0.00024657,2]
[336859232,1725219042363,-500.0,0.00024657,2]
[336859233,1725219042373,-500.0,0.00024657,2]
[336859234,1725219042383,-500.0,0.00024657,2]
[336859235,1725219042392,-500.0,0.00024657,2]
[336859236,1725219042402,-500.0,0.00024657,2]
[336859237,1725219042412,-500.0,0.00024657,2]
[336859238,1725219042422,-507.51553229,0.00024657,2]
[336859239,1725219042438,-500.0,0.00024657,2]
[336859240,1725219042448,-500.0,0.00024657,2]
[336859241,1725219042458,-500.0,0.00024657,2]
[336859242,1725219042468,-2235.28,0.00024657,2]
[336859243,1725219042478,-500.0,0.00024657,2]
[336859244,1725219042488,-500.0,0.00024657,2]
[336859245,1725219042498,-500.0,0.00024657,2]
[336859246,1725219042508,-925.01,0.00024657,2]
[336859247,1725219042519,-500.0,0.00024657,2]
[336859248,1725219042529,-500.0,0.00024657,2]
[336859249,1725219042538,-500.0,0.00024657,2]
[336859250,1725219042548,-1393.18,0.00024657,2]
[336859251,1725219042557,-500.0,0.00024657,2]
[336859252,1725219042566,-500.0,0.00024657,2]
[336859253,1725219042575,-539.61,0.00024657,2]
[336859254,1725219042586,-500.0,0.00024657,2]
[336859255,1725219042596,-500.0,0.00024657,2]
[336859256,1725219042606,-500.0,0.00024657,2]
[336859257,1725219042616,-1106.18,0.00024657,2]
[336859258,1725219042626,-5822.93,0.00024657,2]
[336859259,1725219042636,-2041.72,0.00024657,2]
[336859260,1725219042645,-500.0,0.00024657,2]
[336859261,1725219042655,-1279.1,0.00024657,2]
[336859262,1725219042665,-1196.61,0.00024657,2]
[336859263,1725219042678,-500.0,0.00024657,2]
[336859264,1725219042688,-500.0,0.00024657,2]
[336859265,1725219042697,-500.0,0.00024657,2]
[336859266,1725219042707,-500.0,0.00024657,2]
[336859267,1725219042716,-733.48,0.00024657,2]
[336859268,1725219042725,-500.0,0.00024657,2]
[336859269,1725219042736,-500.0,0.00024657,2]
[336859270,1725219042747,-2511.47,0.00024657,2]
[336859271,1725219042759,-1899.79,0.00024657,2]
[336859272,1725219042769,-1835.95,0.00024657,2]
[336859273,1725219042778,-500.0,0.00024657,2]
[336859274,1725219042787,-500.0,0.00024657,2]
[336859275,1725219042797,-500.0,0.00024657,2]
[336859276,1725219042807,-500.0,0.00024657,2]
[336859277,1725219042817,-500.0,0.00024657,2]
[336859278,1725219042826,-993.62,0.00024657,2]
[336859279,1725219042836,-500.0,0.00024657,2]
[336859280,1725219042847,-500.0,0.00024657,2]
[336859281,1725219042857,-1701.48,0.00024657,2]
[336859282,1725219042867,-500.0,0.00024657,2]
[336859283,1725219042876,-500.0,0.00024657,2]
[336859284,1725219042886,-500.0,0.00024657,2]
[336859285,1725219042896,-500.0,0.00024657,2]
[336859286,1725219042906,-2217.46,0.00024657,2]
[336859287,1725219042918,-2217.46,0.00024657,2]
[336859288,1725219042929,-500.0,0.00024657,2]
[336859289,1725219042940,-2217.46,0.00024657,2]
[336859290,1725219042951,-2217.46,0.00024657,2]
[336859291,1725219042962,-2217.46,0.00024657,2]
[336859292,1725219042972,-1620.73,0.00024657,2]
[336859293,1725219042981,-2217.46,0.00024657,2]
[336859294,1725219042991,-2217.46,0.00024657,2]
[336859295,1725219043001,-2217.46,0.00024657,2]
[336859296,1725219043011,-2217.46,0.00024657,2]
[336859297,1725219043021,-500.0,0.00024657,2]
[336859298,1725219043032,-2217.46,0.00024657,2]
[336859299,1725219043042,-584.48848356,0.00024657,2]
[336859300,1725219043052,-874.09,0.00024657,2]
[336859301,1725219043061,-500.0,0.00024657,2]
[336859302,1725219043071,-500.0,0.00024657,2]
[336859303,1725219043080,-500.0,0.00024657,2]
[336859304,1725219043089,-1731.16,0.00024657,2]
[336859305,1725219043099,-500.0,0.00024657,2]
[336859306,1725219043108,-268.47265207,0.00024657,2]
[336859307,1725219043118,-556.85,0.00024657,2]
[336859308,1725219043128,-500.0,0.00024657,2]
[336859309,1725219043138,-500.0,0.00024657,2]
[336859310,1725219043149,-1894.57,0.00024657,2]
[336859311,1725219043159,-500.0,0.00024657,2]
[336859312,1725219043169,-1418.21,0.00024657,2]
[336859313,1725219043180,-592.05,0.00024657,2]
[336859314,1725219043189,-500.0,0.00024657,2]
[336859315,1725219043199,-13189.66,0.00024657,2]
[336859316,1725219043209,-485.92556822,0.00024657,2]
[336859317,1725219043218,-500.0,0.00024657,2]
[336859318,1725219043227,-500.0,0.00024657,2]
[336859319,1725219043236,-505.29352395,0.00024657,2]
[336859320,1725219043246,-290.23250147,0.00024657,2]
[336859321,1725219043255,-3001.57,0.00024657,2]
[336859322,1725219043264,-554.08,0.00024657,2]
[336859323,1725219043273,-500.0,0.00024657,2]
[336859324,1725219043284,-519.70414707,0.00024657,2]
[336859325,1725219043295,-500.0,0.00024657,2]
[336859326,1725219043304,-500.0,0.00024657,2]
[336859327,1725219043314,-505.40270031,0.00024657,2]
[336859328,1725219043323,-500.0,0.00024657,2]
[336859329,1725219043332,-1630.97,0.00024657,2]
[336859330,1725219043342,-500.0,0.00024657,2]
[336859332,1725219043351,-500.0,0.00024657,2]
[336859333,1725219043360,-500.0,0.00024657,2]
[336859335,1725219043370,-500.0,0.00024657,2]
[336859337,1725219043379,-500.0,0.00024657,2]
[336859339,1725219043388,-500.0,0.00024657,2]
[336859340,1725219043398,-500.0,0.00024657,2]
[336859342,1725219043408,-3209.42,0.00024657,2]
[336859344,1725219043417,-500.0,0.00024657,2]
[336859346,1725219043429,-704.92,0.00024657,2]
[336859348,1725219043439,-501.58213849,0.00024657,2]
[336859349,1725219043448,-500.0,0.00024657,2]
[336859351,1725219043457,-500.0,0.00024657,2]
[336859353,1725219043466,-500.0,0.00024657,2]
[336859355,1725219043476,-500.0,0.00024657,2]
[336859356,1725219043485,-500.0,0.00024657,2]
[336859358,1725219043495,-500.0,0.00024657,2]
[336859360,1725219043504,-500.0,0.00024657,2]
[336859362,1725219043514,-463.55958975,0.00024657,2]
[336859363,1725219043524,-502.93525691,0.00024657,2]
[336859364,1725219043533,-2101.43,0.00024657,2]
[336859365,1725219043542,-507.71146256,0.00024657,2]
[336859366,1725219043551,-500.0,0.00024657,2]
[336859368,1725219043560,-500.0,0.00024657,2]
[336859369,1725219043570,-500.0,0.00024657,2]
[336859370,1725219043579,-537.43010146,0.00024657,2]
[336859371,1725219043588,-1799.57,0.00024657,2]
[336859372,1725219043597,-689.65,0.00024657,2]
[336859374,1725219043606,-500.0,0.00024657,2]
[336859376,1725219043615,-500.0,0.00024657,2]
[336859378,1725219043625,-610.36482158,0.00024657,2]
[336859379,1725219043634,-719.85,0.00024657,2]
[336859381,1725219043643,-500.0,0.00024657,2]
[336859382,1725219043652,-500.0,0.00024657,2]
[336859383,1725219043661,-715.88,0.00024657,2]
[336859384,1725219043670,-500.0,0.00024657,2]
[336859386,1725219043680,-638.12,0.00024657,2]
[336859388,1725219043689,-500.0,0.00024657,2]
[336859390,1725219043699,-509.68234293,0.00024657,2]
[336859392,1725219043708,-384.63994157,0.00024657,2]
[336859415,1725219043950,-115.36005843,0.00024657,2]
[336859416,1725219043960,-2399.64,0.00024657,2]
[336859417,1725219043969,-1049.15,0.00024657,2]
[336859418,1725219043979,-654.41,0.00024657,2]
[336859419,1725219043989,-500.0,0.00024657,2]
[336859420,1725219043999,-624.9,0.00024657,2]
[336859421,1725219044008,-500.0,0.00024657,2]
[336859422,1725219044018,-500.0,0.00024657,2]
[336859423,1725219044027,-791.14,0.00024657,2]
[336859424,1725219044178,-500.0,0.00024657,2]
[336859425,1725219044188,-500.0,0.00024657,2]
[336859426,1725219044197,-1549.82,0.00024657,2]
[336859427,1725219044207,-1567.73,0.00024657,2]
[336859428,1725219044217,-1462.36,0.00024657,2]
[336859429,1725219044226,-500.0,0.00024657,2]
[336859430,1725219044235,-500.0,0.00024657,2]
[336859431,1725219044245,-787.54,0.00024657,2]
[336859432,1725219044254,-500.0,0.00024657,2]
[336859433,1725219044264,-500.0,0.00024657,2]
[336859434,1725219044274,-500.0,0.00024657,2]
[336859435,1725219044283,-500.0,0.00024657,2]
[336859436,1725219044293,-500.0,0.00024657,2]
[336859437,1725219044302,-500.0,0.00024657,2]
[336859438,1725219044312,-502.67013471,0.00024657,2]
[336859439,1725219044321,-500.0,0.00024657,2]
[336859440,1725219044331,-1412.11,0.00024657,2]
[336859441,1725219044340,-391.47411515,0.00024657,2]
[336859442,1725219044352,-500.0,0.00024657,2]
[336859443,1725219044363,-500.0,0.00024657,2]
[336859444,1725219044374,-1050.82,0.00024657,2]
[336859445,1725219044383,-500.0,0.00024657,2]
[336859446,1725219044393,-500.0,0.00024657,2]
[336859447,1725219044403,-500.0,0.00024657,2]
[336859448,1725219044413,-500.0,0.00024657,2]
[336859449,1725219044424,-761.24,0.00024657,2]
[336859450,1725219044438,-475.2,0.00024657,2]
[336859451,1725219044447,-500.0,0.00024657,2]
[336859452,1725219044457,-500.0,0.00024657,2]
[336859453,1725219044466,-500.0,0.00024657,2]
[336859454,1725219044476,-502.05925854,0.00024657,2]
[336859455,1725219044486,-500.0,0.00024657,2]
[336859456,1725219044495,-500.0,0.00024657,2]
[336859457,1725219044505,-502.07144363,0.00024657,2]
[336859458,1725219044515,-521.02,0.00024657,2]
[336859459,1725219044526,-500.0,0.00024657,2]
[336859460,1725219044536,-500.0,0.00024657,2]
[336859461,1725219044547,-855.33,0.00024657,2]
[336859462,1725219044557,-523.37598791,0.00024657,2]
[336859463,1725219044567,-1408.28,0.00024657,2]
[336859464,1725219044576,-500.0,0.00024657,2]
[336859465,1725219044585,-500.0,0.00024657,2]
[336859466,1725219044595,-1671.67,0.00024657,2]
[336859467,1725219044604,-615.44,0.00024657,2]
[336859468,1725219044613,-4518.49,0.00024657,2]
[336859469,1725219044622,-500.0,0.00024657,2]
[336859470,1725219044634,-500.0,0.00024657,2]
[336859471,1725219044646,-500.0,0.00024657,2]
[336859472,1725219044656,-1601.96,0.00024657,2]
[336859473,1725219044668,-503.0032315,0.00024657,2]
[336859474,1725219044683,-500.0,0.00024657,2]
[336859475,1725219044692,-1503.2,0.00024657,2]
[336859476,1725219044701,-500.0,0.00024657,2]
[336859477,1725219044710,-500.0,0.00024657,2]
[336859478,1725219044719,-1555.03,0.00024657,2]
[336859479,1725219044728,-500.0,0.00024657,2]
[336859480,1725219044738,-500.0,0.00024657,2]
[336859481,1725219044747,-500.0,0.00024657,2]
[336859482,1725219044756,-500.0,0.00024657,2]
[336859483,1725219044765,-1007.43,0.00024657,2]
[336859484,1725219044775,-500.0,0.00024657,2]
[336859485,1725219044785,-500.0,0.00024657,2]
[336859486,1725219044795,-2726.3,0.00024657,2]
[336859487,1725219044804,-1803.68,0.00024657,2]
[336859488,1725219044814,-1666.2,0.00024657,2]
[336859489,1725219044824,-678.94,0.00024657,2]
[336859490,1725219044833,-500.0,0.00024657,2]
[336859491,1725219044843,-500.0,0.00024657,2]
[336859492,1725219044852,-500.0,0.00024657,2]
[336859493,1725219044862,-500.0,0.00024657,2]
[336859494,1725219044872,-500.0,0.00024657,2]
[336859495,1725219044882,-1863.54,0.00024657,2]
[336859496,1725219044891,-557.73,0.00024657,2]
[336859497,1725219044900,-513.02,0.00024657,2]
[336859498,1725219044910,-513.02,0.00024657,2]
[336859499,1725219044919,-513.02,0.00024657,2]
[336859500,1725219044929,-500.0,0.00024657,2]
[336859501,1725219044938,-1706.4,0.00024657,2]
[336859502,1725219044948,-500.0,0.00024657,2]
[336859503,1725219044957,-500.0,0.00024657,2]
[336859504,1725219044967,-690.62,0.00024657,2]
[336859505,1725219044977,-500.0,0.00024657,2]
[336859506,1725219044987,-500.0,0.00024657,2]
[336859507,1725219044996,-500.0,0.00024657,2]
[336859508,1725219045006,-269.84241401,0.00024657,2]
[336859509,1725219045016,-500.0,0.00024657,2]
[336859510,1725219045026,-500.0,0.00024657,2]
[336859511,1725219045035,-501.9532307,0.00024657,2]
[336859512,1725219045045,-442.27831404,0.00024657,2]
[336859513,1725219045054,-416.09270288,0.00024657,2]
[336859514,1725219045064,-500.0,0.00024657,2]
[336859515,1725219045073,-500.0,0.00024657,2]
[336859516,1725219045083,-501.77892621,0.00024657,2]
[336859517,1725219045092,-500.0,0.00024657,2]
[336859518,1725219045102,-500.0,0.00024657,2]
[336859519,1725219045111,-500.0,0.00024657,2]
[336859520,1725219045121,-500.0,0.00024657,2]
[336859521,1725219045130,-1183.66,0.00024657,2]
[336859522,1725219045140,-1100.3,0.00024657,2]
[336859523,1725219045149,-708.58,0.00024657,2]
[336859524,1725219045158,-500.0,0.00024657,2]
[336859525,1725219045168,-500.0,0.00024657,2]
[336859526,1725219045178,-2304.41,0.00024657,2]
[336859527,1725219045187,-502.1027319,0.00024657,2]
[336859528,1725219045197,-500.62487102,0.00024657,2]
[336859529,1725219045206,-2167.55,0.00024657,2]
[336859530,1725219045216,-603.8133327,0.00024657,2]
[336859531,1725219045225,-500.0,0.00024657,2]
[336859532,1725219045235,-500.0,0.00024657,2]
[336859533,1725219045244,-500.0,0.00024657,2]
[336859534,1725219045254,-500.0,0.00024657,2]
[336859535,1725219045264,-1230.06,0.00024657,2]
[336859536,1725219045273,-500.0,0.00024657,2]
[336859537,1725219045283,-1083.58,0.00024657,2]
[336859538,1725219045293,-500.0,0.00024657,2]
[336859539,1725219045303,-500.0,0.00024657,2]
[336859540,1725219045313,-272.73879747,0.00024657,2]
[336859541,1725219045323,-500.0,0.00024657,2]
[336859542,1725219045333,-2424.12,0.00024657,2]
[336859543,1725219045343,-500.63026469,0.00024657,2]
[336859544,1725219045352,-500.0,0.00024657,2]
[336859545,1725219045363,-500.0,0.00024657,2]
[336859546,1725219045373,-1642.28,0.00024657,2]
[336859547,1725219045382,-1340.74,0.00024657,2]
[336859548,1725219045392,-500.0,0.00024657,2]
[336859549,1725219045401,-200.0,0.00024658,15]
[336859550,1725219045412,-380.0,0.00024658,2]
[336859551,1725219045425,-500.0,0.00024673,2]
[336859552,1725219045437,-159.568609,0.0002468,2]
[336859553,1725219045447,-165.98969138,0.00024694,2]
[336859554,1725219045457,-150.112233,0.000247,4]
[336859555,1725219045467,-150.112233,0.000248,4]
[336859556,1725219045478,-165.98969138,0.00024831,2]
[336859557,1725219045488,-1368.23083191,0.00024831,2]
[336859558,1725219045498,-2206.50428009,0.0002489,3]
[336859559,1725219045509,-153.02792783,0.00024896,7]
[336859561,1725219045519,-153.52,0.00024896,7]
[336859563,1725219045530,-153.21542783,0.00024896,7]
[336859565,1725219045539,-153.21542783,0.00024896,7]
[336859567,1725219045549,-153.21542783,0.00024896,7]
[336859569,1725219045558,-153.21542783,0.00024896,7]
[336859571,1725219045568,-153.21542783,0.00024896,7]
[336859573,1725219045577,-153.21542783,0.00024896,7]
[336859575,1725219045586,-153.21542783,0.00024896,7]
[336859577,1725219045596,-153.99529182,0.00024896,7]
[336859579,1725219045606,-154.49,0.00024896,7]
[336859581,1725219045616,-154.18279182,0.00024896,7]
[336859583,1725219045626,-154.18279182,0.00024896,7]
[336859585,1725219045635,-154.18279182,0.00024896,7]
[336859587,1725219045645,-154.18279182,0.00024896,7]
[336859589,1725219045656,-154.18279182,0.00024896,7]
[336859591,1725219045667,-154.18279182,0.00024896,7]
[336859593,1725219045677,-154.18279182,0.00024896,7]
[336859595,1725219045687,-150.112233,0.000249,4]
[336859597,1725219045696,-57959.45144514,0.000249,2]
[336859599,1725219045706,-15445.5299606,0.00024921,3]
[336859601,1725219045716,-2217.46,0.00024929,2]
[336859603,1725219045726,-500.0,0.0002493,2]
[336859605,1725219045736,-500.0,0.0002493,2]
[336859607,1725219045746,-500.0,0.0002493,2]
[336859608,1725219045756,-500.0,0.0002493,2]
[336859609,1725219045766,-2217.46,0.0002493,2]
[336859610,1725219045775,-2217.46,0.0002493,2]
[336859611,1725219045785,-2217.46,0.0002493,2]
[336859612,1725219045795,-2217.46,0.0002493,2]
[336859613,1725219045804,-2217.46,0.0002493,2]
[336859614,1725219045814,-2217.46,0.0002493,2]
[336859615,1725219045824,-2217.46,0.0002493,2]
[336859616,1725219045834,-513.02,0.0002493,2]
[336859617,1725219045844,-513.02,0.0002493,2]